Cogmind - Beta 16 --- EXPLORER MODE // 2025.12.03 @ 11:52:24 Player: K.K.Y. Result: Destroyed by FX-4C8(R) with Subdweller Machine Gun Performance ------------- Evolutions (0) 0 Regions Visited (3) 600 Robots Destroyed (39) 195 Value Destroyed (914) 914 Prototype IDs (12) 240 Alien Tech Used (0) 0 Bonus (120) 120 TOTAL SCORE: 2069 Bonus ------- Follower Combat Kills 120 Cogmind --------- Core Integrity 0/250 Matter 86/300 Energy 180/180 System Corruption 0% Temperature Cool (0) Movement Treading (160) Location -10/Subcaves Parts ------- > --- POWER (1) -------- Meta Core > --- PROPULSION (2+1) - Spiked Treads (+) > --- UTILITY (3+1) ---- Structural Scanner Improved Terrain Scanner Terrain Scan Processor (+) Terrain Scan Processor > --- WEAPON (2) ------- Heavy Battle Rifle Slug Cannon > --- INVENTORY (5) ---- Huge Storage Unit Humpback Recalibrator Heavy Battle Rifle Peak State ------------ > --- POWER ------------ Meta Core > --- PROPULSION ------- Light Treads Light Treads Spiked Treads > --- UTILITY ---------- Structural Scanner Improved Terrain Scanner Terrain Scan Processor Terrain Scan Processor > --- WEAPON ----------- Heavy Battle Rifle Battle Cannon Slug Cannon > --- INVENTORY -------- Ion Engine Light Treads Huge Storage Unit Recalibrator Heavy Battle Rifle [Rating: 36] Favorites ----------- Power Ion Engine Engine Ion Engine Power Core Meta Core Propulsion Light Treads Treads Light Treads Utility Terrain Scan Processor Device Structural Scanner Storage Medium Storage Unit Processor Terrain Scan Processor Weapon Assault Rifle Energy Cannon Subdweller Beam Cannon Ballistic Gun Assault Rifle Ballistic Cannon Battle Cannon Special Weapon Mining Laser Build | -11 -10 -10 -10 ------- Run | Yrd Mat Min Sub Slots Evolved 1 | . 1 . . Power . | . . . . Propulsion . | . . . . Utility 1 | . 1 . . Weapon . | . . . . Parts Attached 21 | 7 5 . 9 Power 2 | 1 . . 1 Engine 1 | 1 . . . Core 1 | . . . 1 Reactor . | . . . . Propulsion 5 | 2 1 . 2 Treads 5 | 2 1 . 2 Leg . | . . . . Wheel . | . . . . Hover . | . . . . Flight . | . . . . Utility 7 | 2 4 . 1 Device 3 | 1 2 . . Storage 2 | 1 1 . . Processor 2 | . 1 . 1 Hackware . | . . . . Protection . | . . . . Artifact . | . . . . Weapon 7 | 2 . . 5 Energy Gun . | . . . . Energy Cannon 1 | . . . 1 Ballistic Gun 3 | 2 . . 1 Ballistic Cannon 2 | . . . 2 Launcher . | . . . . Special Weapon 1 | . . . 1 Impact Weapon . | . . . . Slashing Weapon . | . . . . Piercing Weapon . | . . . . Special Melee Weapon . | . . . . Unidentified Prototypes 1 | . . . 1 Parts Lost 4 | . . . 4 Power . | . . . . Propulsion 2 | . . . 2 Utility . | . . . . Weapon 2 | . . . 2 Highest Loss Streak 3 | . . . 3 To Critical Strikes . | . . . . Average Backups 4 | . 3 4 4 Power . | . . . . Propulsion . | . . 1 . Utility 2 | . 1 2 2 Weapon . | . 1 1 . Tool/Special . | . . . . Unused Backups 6 | . 2 . 4 Power 1 | . 1 . . Propulsion . | . . . . Utility 4 | . 1 . 3 Weapon 1 | . . . 1 Tool/Special . | . . . . Average Slot Usage (%) 96 | . 89 100 99 Engine 8 | . 12 12 5 Core 2 | . . . 5 Treads 25 | . 25 25 25 Device 22 | . 24 25 20 Processor 10 | . 2 12 15 Ballistic Gun 17 | . 25 25 10 Ballistic Cannon 4 | . . . 8 Special Weapon 2 | . . . 4 Peak Build Rating 36 | 7 11 11 36 Average Rating 17 | 5 9 11 24 On Entrance 7 | . 7 11 11 Avg Prop Armor Cover (%) . | . . . . Naked Turns . | . . . . Heaviest Build 23 | 20 20 11 23 Greatest Support 60 | 40 40 40 60 Greatest Overweight (x) . | . . . . Average Overweight (x) . | . . . . Largest Inventory Capacity 20 | 10 20 5 5 Average Capacity 5 | 9 5 5 5 Most Carried 5 | 5 5 5 5 Average Carried 4 | 1 3 4 4 Final Capacity 10 | 10 5 5 5 Final Carried 5 | 2 4 5 5 Class Distribution -------------------- 47% | Scavenger-Skirmisher 26% | Hacker-Mutant 25% | Hacker-Skirmisher Dominant Class ---------------- Hacker-Mutant | -10/Materials Hacker-Skirmisher | -10/Mines Scavenger-Skirmisher | -10/Subcaves Resources | -11 -10 -10 -10 ----------- Run | Yrd Mat Min Sub Matter Collected 1084 | 282 308 42 452 Remotely . | . . . . Salvage Created 1426 | 94 657 123 552 Parts 96 | 8 43 8 37 Haulers Intercepted 2 | . 2 . . Recyclers Shooed 1 | . 1 . . Parts Field Recycled . | . . . . Retrieved Matter . | . . . . Parts Self-Destructed . | . . . . Prevented . | . . . . Parts Restored . | . . . . Kills | -11 -10 -10 -10 ------- Run | Yrd Mat Min Sub Combat Hostiles Destroyed 22 | . 6 2 14 Guns 13 | . 6 2 5 Cannons 9 | . . . 9 Classes Destroyed 11 | 2 7 . 2 Worker 1 | . 1 . . Builder 6 | . 5 1 . Tunneler 1 | 1 . . . Hauler 2 | . 2 . . Recycler 3 | 1 2 . . Mechanic 1 | . 1 . . Watcher 3 | . 3 . . Swarmer 3 | . 2 . 1 Grunt 6 | . 4 2 . Cobbler 1 | . . . 1 Subdweller 13 | . . . 13 Best Kill Streak 5 | 2 5 2 3 Combat Bots Only 3 | . 2 2 3 Max Kills in Single Turn 1 | 1 1 1 1 Gunslinging . | . . . . Exploded . | . . . . Melee . | . . . . Uniques/NPCs Destroyed . | . . . . Combat | -11 -10 -10 -10 -------- Run | Yrd Mat Min Sub Hostile Shots Fired 110 | . 40 10 60 Missed 30 | . 15 2 13 Hits 80 | . 25 8 47 Projectile 80 | . 25 8 47 AOE 6 | . . . 6 Critical Strikes 2 | . 1 . 1 Damage Taken 1101 | . 213 60 828 Core 259 | . 44 10 205 Absorbed by Shields . | . . . . Ignored by Resistances 631 | . 131 38 462 Core Remaining (%) 100 | 100 . . . Volleys Fired 126 | 2 43 7 74 Largest 3 | 2 2 2 3 Hottest 133 | 40 40 40 133 Shots Fired 259 | 4 86 14 155 Gun 158 | 4 86 14 54 Cannon 79 | . . . 79 Launcher . | . . . . Special 22 | . . . 22 Kinetic 235 | 4 86 14 131 Thermal 24 | . . . 24 Explosive . | . . . . Electromagnetic . | . . . . Robot Hit Streak 25 | 3 24 25 18 Robot Miss Streak 2 | . 2 1 2 Penetration Max . | . . . . Secondary Targets 2 | . 2 . . Max Gunslinging Chain 1 | . 1 . . Shots Hit Robots 160 | 3 70 12 75 Core Hits 64 | 3 32 6 23 Critical Kills . | . . . . Critical Parts Destroyed . | . . . . Critical Strikes 3 | . . . 3 Destroy 3 | . . . 3 Melee Attacks . | . . . . Impact . | . . . . Slashing . | . . . . Piercing . | . . . . Sneak Attacks . | . . . . Combat Hostiles . | . . . . Follow-up Attacks . | . . . . Damage Inflicted 2687 | 31 876 156 1624 Guns 1663 | 31 876 156 600 Cannons 1024 | . . . 1024 Explosions . | . . . . Melee . | . . . . Ramming . | . . . . Kinetic 2631 | 31 876 156 1568 Thermal 56 | . . . 56 Explosive . | . . . . Electromagnetic . | . . . . Impact . | . . . . Slashing . | . . . . Piercing . | . . . . Highest Corruption . | . . . . Average Corruption . | . . . . Corruption Purged . | . . . . Corruption Blocked . | . . . . Overload Shots . | . . . . Overflow Damage . | . . . . Projectiles . | . . . . Explosions . | . . . . Melee . | . . . . Knockbacks 4 | . . . 4 Impact . | . . . . Kinetic 4 | . . . 4 Secondary . | . . . . Self-Inflicted Damage . | . . . . Shots . | . . . . Rammed . | . . . . Targets Rammed . | . . . . Kicked . | . . . . Crushed . | . . . . Highest Temperature 145 | . 9 2 145 Average Temperature 17 | . 3 2 31 Received Heat Transfer 490 | . 147 57 286 Siege Activations . | . . . . Martial Activations . | . . . . Shielding Activations . | . . . . Robots Disrupted . | . . . . Combat Hostiles . | . . . . Robots Corrupted . | . . . . Combat Hostiles . | . . . . Parts Fried . | . . . . Impact Corruptions . | . . . . Robots Melted . | . . . . Combat Hostiles . | . . . . Parts Melted 4 | . . . 4 Heat Transferred 74 | . . . 74 Parts Sabotaged . | . . . . Parts Stolen . | . . . . Parts Stripped . | . . . . Power Chain Reactions . | . . . . Alert | -11 -10 -10 -10 ------- Run | Yrd Mat Min Sub Maximum Alert Level . | . . . . Low Security (%) 100 | 100 100 100 . Level 1 . | . . . . Level 2 . | . . . . Level 3 . | . . . . Level 4 . | . . . . Level 5 . | . . . . High Security . | . . . . Max Security . | . . . . Peak Influence 57 | 5 57 50 . Initial . | . . . . Average 3 | . 4 2 . Influence Increases 337 | 10 242 55 30 Destroy 0b10 Robot/C 180 | . 120 40 20 Destroy 0b10 Robot/NC 85 | 10 70 5 . Destroy Leader 60 | . 40 10 10 Successful Hack 12 | . 12 . . Influence Decreases 337 | 10 242 55 30 Time Decay 337 | 10 242 55 30 Squads Dispatched . | . . . . Investigation . | . . . . Extermination . | . . . . Reinforcement . | . . . . Assault . | . . . . Garrison . | . . . . Intercept . | . . . . Searches Triggered . | . . . . Construction Impeded . | . . . . Haulers Reinforced . | . . . . Active Scanning Responses . | . . . . Cargo Convoy Interrupts . | . . . . Stealth | -11 -10 -10 -10 --------- Run | Yrd Mat Min Sub Distress Signals 1 | . 1 . . Communications Jammed . | . . . . Distress Signals . | . . . . Times Spotted 28 | . 9 2 17 Peak Tracking Total 3 | . 2 2 3 Tactical Retreats . | . . . . Traps | -11 -10 -10 -10 ------- Run | Yrd Mat Min Sub Traps Triggered 3 | . 2 . 1 Indirectly . | . . . . Trap Hack Attempts . | . . . . Triggered . | . . . . Disarmed . | . . . . Reprogrammed . | . . . . Reused . | . . . . Traps Extracted . | . . . . Installed . | . . . . Triggered . | . . . . Machines | -11 -10 -10 -10 ---------- Run | Yrd Mat Min Sub Machines Disabled . | . . . . Max in Single Turn . | . . . . Machines Repaired . | . . . . Machines Dismantled . | . . . . Machines Sabotaged . | . . . . Overloaded Fab Kills . | . . . . Hacking | -11 -10 -10 -10 --------- Run | Yrd Mat Min Sub Machines Accessed 11 | . 9 . 2 Terminals 7 | . 7 . . Fabricators . | . . . . Repair Stations . | . . . . Recycling Units 2 | . 2 . . Scanalyzers . | . . . . Garrison Access . | . . . . Total Hacks 18 | . 13 . 5 Successful 17 | . 12 . 5 Failed 1 | . 1 . . Catastrophic . | . . . . Database Lockouts . | . . . . Manual 12 | . 12 . . Terminals 9 | . 9 . . Fabricators . | . . . . Repair Stations . | . . . . Recycling Units 4 | . 4 . . Scanalyzers . | . . . . Garrison Access . | . . . . Terminal Hacks 5 | . . . 5 Record 4 | . . . 4 Proto ID Catalog 1 | . . . 1 Fabricator Hacks . | . . . . Repair Station Hacks . | . . . . Recycling Unit Hacks 2 | . 2 . . Retrieve Components 2 | . 2 . . Scanalyzer . | . . . . Garrison Access Hacks . | . . . . Unauthorized Hacks 9 | . 9 . . Terminals 7 | . 7 . . Botnet 7 | . 7 . . Fabricators . | . . . . Repair Stations . | . . . . Recycling Units 2 | . 2 . . Reject 1 | . 1 . . Mask 1 | . 1 . . Scanalyzers . | . . . . Garrison Access . | . . . . Data Cores Recovered . | . . . . Used . | . . . . Hacking Detections 3 | . 3 . . Full Trace Events . | . . . . Feedback Events . | . . . . Feedback Blocked . | . . . . Robot Schematics Acquired . | . . . . Robots Built . | . . . . Authchips . | . . . . Time . | . . . . Total Robot Build Rating . | . . . . Part Schematics Acquired . | . . . . Parts Built . | . . . . Authchips . | . . . . Time . | . . . . Total Part Build Rating . | . . . . Part Studies Acquired . | . . . . Parts Repaired . | . . . . Time . | . . . . Parts Recycled . | . . . . Recycled Matter . | . . . . Retrieved Matter . | . . . . Retrieved Components 13 | . 13 . . Parts Scanalyzed . | . . . . Part Schematics Acquired . | . . . . Parts Damaged . | . . . . Bothacking | -11 -10 -10 -10 ------------ Run | Yrd Mat Min Sub Used RIF Installer . | . . . . Robots Hacked . | . . . . Non-combat . | . . . . Combat . | . . . . Robot Hacks Applied . | . . . . Relay Couplers Released . | . . . . Fabnet Peak Effective % . | . . . . Robots Rewired . | . . . . Allies Hacked . | . . . . Hacks Repelled . | . . . . Allies | -11 -10 -10 -10 -------- Run | Yrd Mat Min Sub Total Allies 2 | . . 2 . Largest Group 2 | . . 2 2 Highest-Rated Group 42 | . . 38 42 Highest-Rated Ally 31 | . . 31 31 Total Orders . | . . . . Ally Attacks 32 | . . . 32 Total Damage 458 | . . . 458 Kills 4 | . . . 4 Allies Corrupted . | . . . . Allies Melted . | . . . . Intel | -11 -10 -10 -10 ------- Run | Yrd Mat Min Sub Active Infowar (turns) 4871 | 66 1563 854 2388 Terrain 4796 | . 1554 854 2388 Structural 4871 | 66 1563 854 2388 Robot Analysis Total . | . . . . Derelict Logs Recovered 1 | . . . 1 Drone Launches . | . . . . Drone Recoveries . | . . . . Exploration | -11 -10 -10 -10 ------------- Run | Yrd Mat Min Sub Turns Passed 4890 | 85 1563 854 2388 Spaces Moved 2518 | 51 854 460 1153 Core 21 | 21 . . . Treads 2497 | 30 854 460 1153 Legs . | . . . . Wheels . | . . . . Hover . | . . . . Flight . | . . . . Fastest Speed 50 | 50 160 160 160 Average Speed 159 | 114 160 160 160 Slowest Speed 160 | 160 160 160 160 Overloaded Moves . | . . . . Propulsion Burnouts . | . . . . Robots Hopped . | . . . . Potential Cave-ins . | . . . . Cave-ins Triggered . | . . . . Exploration Rate (%) 68 | 4 96 95 79 Regions Visited 3 Branch Regions 2 Pre-discovered Areas 3 | . . . 3 Known Exits Taken 3 | 1 1 1 . Unknown Exits Taken . | . . . . Scrap Searched 12 | . . . 12 Spaces Dug 8 | . . . 8 Terrain Destroyed 18 | . . . 18 Melee . | . . . . Projectile 18 | . . . 18 AOE . | . . . . Terrain Rammed . | . . . . Walls Destroyed . | . . . . Machines Disabled . | . . . . Actions | -11 -10 -10 -10 --------- Run | Yrd Mat Min Sub Total 3131 | 73 968 564 1526 Wait 432 | 6 50 97 279 Move 2515 | 50 853 459 1153 Hop . | . . . . Pick Up 20 | 8 8 1 3 Fast Attach 7 | 1 2 . 4 Attach 10 | 6 2 . 2 Detach 3 | . 2 . 1 Swap 5 | . 1 . 4 Drop 13 | . 7 . 6 Fire 126 | 2 43 7 74 Melee . | . . . . Ram . | . . . . Kick . | . . . . Crush . | . . . . Escape Stasis . | . . . . Rewire . | . . . . Trap . | . . . . Miscellaneous . | . . . . Route ------- -11/Scrapyard -10/Materials (discovered 6 exits: *Mat x3 / *Min x2 / *Sub) -10/Mines (discovered 3 exits: *Mat x2 / *Sub) -10/Subcaves (discovered 4 exits: *Mat x2 / Rec / [*Scr]) History --------- Turn | Location | Event 13 | -11/Scrapyard | Identified exit to Materials 13 | -11/Scrapyard | Discovered exit to Materials (range 14) 86 | -11/Scrapyard | Entered Materials 86 | -10/Materials | Evolved 1 slot: Utility x1 278 | -10/Materials | Identified exit to Materials 278 | -10/Materials | Discovered exit to Materials (range 9) 303 | -10/Materials | Build established: Hacker-Mutant 546 | -10/Materials | Discovered exit to Materials (range 16) 550 | -10/Materials | Identified exit to Mines 550 | -10/Materials | Discovered exit to Mines (range 11) 735 | -10/Materials | Discovered exit to Materials (range 10) 1066 | -10/Materials | Discovered exit to Mines (range 16) 1448 | -10/Materials | Identified exit to Subcaves 1448 | -10/Materials | Discovered exit to Subcaves (range 8) 1605 | -10/Materials | Build established: Hacker-Skirmisher 1649 | -10/Materials | Entered Mines 1831 | -10/Mines | Received a Rocket Launcher from a helpful Derelict 2043 | -10/Mines | Discovered exit to Materials (range 10) 2163 | -10/Mines | Found a hidden stash of uninstalled traps 2290 | -10/Mines | Discovered exit to Materials (range 13) 2390 | -10/Mines | Discovered exit to Subcaves (range 7) 2503 | -10/Mines | Entered Subcaves 2503 | -10/Subcaves | Accompanied by 2 allies 2504 | -10/Subcaves | Approached by a straggling Scientist 2508 | -10/Subcaves | Led the pair of lost Derelicts to an unsafe place 2818 | -10/Subcaves | Build established: Scavenger-Skirmisher 2856 | -10/Subcaves | Visited Clippyterm 2861 | -10/Subcaves | Identified exit to Recycling 2861 | -10/Subcaves | Learned location of Section 7 (-2) 3451 | -10/Subcaves | Shifting Twisted Machinery released Sub. Power Source 3453 | -10/Subcaves | Shifting Twisted Machinery released Sub. Monowheel 3483 | -10/Subcaves | A Subdweller sparked back to life 3483 | -10/Subcaves | A Subdweller sparked back to life 3483 | -10/Subcaves | A Subdweller sparked back to life 3509 | -10/Subcaves | Found Prototype Power Core 3509 | -10/Subcaves | Identified Meta Core 3510 | -10/Subcaves | Attached Meta Core, gained temporary slots: Propulsion, Utility, Weapon 3573 | -10/Subcaves | Learned location of Recycling (-9) 3633 | -10/Subcaves | Visited 4L-MR0's lab 3766 | -10/Subcaves | Disturbed a concealed Subdweller 4071 | -10/Subcaves | Shifting Twisted Machinery released Hvy. Riot Gun 4185 | -10/Subcaves | Shifting Twisted Machinery released Battle Rifle 4240 | -10/Subcaves | Ambushed by Subdweller buried in earth 4387 | -10/Subcaves | Core integrity fell below 50% 4486 | -10/Subcaves | Learned location of Zion (-7) 4486 | -10/Subcaves | Met a Zionite searching for "candidates" 4538 | -10/Subcaves | Identified exit to Materials 4538 | -10/Subcaves | Discovered exit to Materials (range 14) 4605 | -10/Subcaves | Shifting Twisted Machinery released Flamer 4637 | -10/Subcaves | Shifting Twisted Machinery released Battle Rifle 4694 | -10/Subcaves | Discovered exit to Materials (range 6) 4756 | -10/Subcaves | Scientist uncovered a shortcut to Scraptown 4793 | -10/Subcaves | A swath of the cavern ceiling suddenly collapsed 4857 | -10/Subcaves | Ambushed by Subdweller buried in earth 4860 | -10/Subcaves | Core integrity fell below 20% 4891 | -10/Subcaves | Destroyed by FX-4C8(R) with Subdweller Machine Gun Last Messages --------------- is!" 04759_ RT-PXF(c) exits level. 04793_ 7I-0DK(g) crushed by falling debris. A swath of the cavern ceiling suddenly collapses. 04849_ 7I-0DK(g) destroyed. 04854_ TB-DQY(R) suffers critical hit (Destroy). 04858_ 0N-QCX(R): "SLEEPOVER!" 04865_ Destroyed Scrap Shield. 04869_ Slug penetrates 0N-QCX(R). 04869_ Sub. Optics melted. 04869_ 0N-QCX(R) destroyed. 04872_ WW-SX8(R) knocked back. 04876_ Lgt. Treads destroyed. 04878_ Destroyed Sub. Optics. 04878_ TB-DQY(R) destroyed. 04880_ Battle Cannon destroyed. 04882_ Temporary Weapon slot lost. 04882_ WW-SX8(R) destroyed. 04889_ Lgt. Treads destroyed. Map ----- +----------------------------------------------------+ | ########## ### # ## ## """ #####" ### | | ### " " ##?#" ## | | ## ### " " " ###??? # | | #### ### ### ## # ""####?????? ? | | ####### ### ############"""# ? ? ????? | | ########## #### ############# " |"?? ??##? | | ######### ### ### " ####?###" "" ? ??? | | ########## "[##?###### ""# ? ?? ??? | | ###### #### [% " ##????###""###???? ??? | | ###### ## %* ##?##??#?"### ? ? ??? | | ### "#### #########?#?## ?? ????? | | ####### #########?#?#???????????? | | ######## #########???? ????????? | | ### ############?#?#####????? ?????? | | ## #############????#???????????? | | ### ################?##???????????? | | #### ###########?#??#### ??????????? | | ## ##### ## ?######## ########?# ? ?????????? | | # ####### ####"##### # ######?#?? ?????????? | | ## ##### ####### ####???#? ?????????? | | ##### ###" ######## ?????????? | | " ####???#? ?????????? | | ###?#??#?#????????? | | # ## =%[ #####???#?#????????? | | #### % ####### #########? ???????? | | ##### ####### @ ###??????????? | | ####& ###### #####????????? | | ###%& ###?### ##?????????? | | ### && ####### ;; % % ?????????? | | # ## ############ ##; ?????????? | | ## # #######""##" R #### & %? ????????? | | #### ########?"??" =##### % ??????????? | | " "" #######" ?"?" [%####?? % ??????????? | | #"" #######?" ?"""" * ##? ? ???????????? | | "## ######?"""""? ###% ?#? ? ????????????? | | ##### #########?# ###### ##?#??#????????????? | | ############??##?#####?#?####;####?#?????????????? | | #??#########????###?#?#????#####?##??????????????? | | #?##????????#?############??###??????????????????? | | #?####????##?#?#?###?##??#??#?#??????????????????? | | ???###?####???#??#???#????##?????????????????????? | | #??#?????#??#?????##?????#???????????????????????? | | ????##?#?????#??###??????????????????????????????? | | ?##??##?#?#??##?#????????????????????????????????? | | ?#???##?????#???#????????????????????????????????? | | ??#?#????###?????????????????????????????????????? | | ????###?#?#??????????????????????????????????????? | | ???#??????#??????????????????????????????????????? | | ???#?#?#?????????????????????????????????????????? | | ?????????????????????????????????????????????????? | +----------------------------------------------------+ Best States ------------- Heat Dissipation 25 Energy Generation 17 Energy Capacity 250 Matter Stores 300 Matter Capacity 300 Sight Range 16 Terrain Scan Range 16 Terrain Scan Density 160 Resistance: KI 35 Resistance: TH 35 Resistance: EX 35 Resistance: EM 35 Resistance: I 35 Resistance: S 35 Resistance: P 35 Evasion (%) 50 Recoil Reduction 3 Offensive Hacking 20 Item Schematics ----------------- None Robot Schematics ------------------ None Fabricated ------------ Nothing Repaired ---------- Nothing Studied --------- None Alien Tech Used ----------------- None Achievements -------------- None Challenges ------------ None Game ------ Seed SpectralLinearTerminator Manual? 0 Play Time 00:21:25 Cumulative 159.3 hours Start 2025.12.03 @ 11:32:56 End 2025.12.03 @ 11:52:24 Sessions 1 Manual Loads 0 Difficulty Explorer Special Mode None Game No. 208 Rogue 0 Adventurer 0 Explorer 208 Win Type - Total 0 Types 0/0/0/0/0/0/0/0/0/0 Lore% 70 Gallery% 66 Achievement% 52 Wizard Run 0 Options --------- Layout 1 ASCII 0 Keyboard 0 Movement Mouse Keybinds 0 Fullscreen 1 Font 24/Smallcaps Map View 50x35 Zoom Use 0% Tactical HUD 1 Map Filters NONE Filters NONE Steam 1 RUN: 3be1674b-224c-4237-bbd5-13a5c9e52f5a